fUST/lending_fUST_20250226
["ID","MTS","AMOUNT","RATE_DAILY","PERIOD"]
[354504194,1740541877577,-905.71,0.00041643,2]
[354504195,1740541877587,-522.98,0.00041643,2]
[354504196,1740541877596,-916.92,0.00041643,120]
[354504197,1740541877606,-594.42,0.00041643,2]
[354504198,1740541877616,-500.0,0.00041643,2]
[354504199,1740541877626,-940.15,0.00041643,2]
[354504200,1740541877636,-1845.61,0.00041643,2]
[354504201,1740541877646,-850.18,0.00041643,2]
[354504202,1740541877656,-566.29,0.00041643,2]
[354504203,1740541877666,-1025.57,0.00041643,2]
[354504204,1740541877675,-634.95,0.00041643,2]
[354504205,1740541877685,-1528.03,0.00041643,2]
[354504206,1740541877695,-666.28,0.00041643,2]
[354504207,1740541877705,-1167.0,0.00041643,2]
[354504208,1740541877715,-1631.72,0.00041643,2]
[354504209,1740541877725,-524.39,0.00041643,2]
[354504210,1740541877737,-500.0,0.00041643,2]
[354504211,1740541877746,-500.0,0.00041643,2]
[354504212,1740541877756,-550.66,0.00041643,2]
[354504213,1740541877766,-776.92,0.00041643,2]
[354504214,1740541877777,-540.59,0.00041643,2]
[354504215,1740541877787,-467.70708894,0.00041643,2]
[354504216,1740541877796,-1099.25,0.00041643,2]
[354504217,1740541877806,-511.98411526,0.00041643,2]
[354504218,1740541877816,-531.21,0.00041643,2]
[354504219,1740541877826,-653.07,0.00041643,2]
[354504220,1740541877836,-500.0,0.00041643,2]
[354504221,1740541877846,-675.52,0.00041643,2]
[354504222,1740541877856,-2325.51,0.00041643,2]
[354504223,1740541877865,-1778.36,0.00041643,2]
[354504224,1740541878074,-500.0,0.00041643,2]
[354504225,1740541878086,-2484.09,0.00041643,2]
[354504226,1740541878096,-1225.49,0.00041643,2]
[354504227,1740541878106,-998.16,0.00041643,2]
[354504228,1740541878116,-2602.84,0.00041643,2]
[354504229,1740541878133,-565.19,0.00041643,2]
[354504230,1740541878143,-500.0,0.00041643,2]
[354504231,1740541878153,-2764.65,0.00041643,2]
[354504232,1740541878163,-1783.36,0.00041643,2]
[354504233,1740541878172,-6750.26,0.00041643,2]
[354504234,1740541878182,-500.0,0.00041643,2]
[354504235,1740541878192,-5267.08,0.00041643,2]
[354504236,1740541878202,-1830.68,0.00041643,2]
[354504237,1740541878211,-304.47280612,0.00041643,2]
[354504238,1740541878220,-2033.02,0.00041643,2]
[354504239,1740541878230,-3800.0,0.00041643,120]
[354504240,1740541878239,-500.0,0.00041643,2]
[354504241,1740541878249,-500.0,0.00041643,2]
[354504242,1740541878257,-8525.94,0.00041643,2]
[354504243,1740541878267,-167654.2,0.00041643,2]
[354504244,1740541878276,-2404.5,0.00041643,2]
[354504245,1740541878285,-500.0,0.00041643,2]
[354504246,1740541878295,-986.53,0.00041643,2]
[354504247,1740541878304,-18440.98,0.00041643,2]
[354504248,1740541878314,-527.39,0.00041643,2]
[354504249,1740541878323,-626.84,0.00041643,2]
[354504250,1740541878333,-2187.34,0.00041643,2]
[354504251,1740541878342,-2420.23,0.00041643,2]
[354504252,1740541878351,-3527.91,0.00041643,2]
[354504253,1740541878361,-500.0,0.00041643,2]
[354504254,1740541878370,-500.0,0.00041643,2]
[354504255,1740541878381,-635.5,0.00041643,2]
[354504256,1740541878390,-1252.18,0.00041643,2]
[354504257,1740541878400,-1909.8,0.00041643,2]
[354504258,1740541878410,-500.0,0.00041643,2]
[354504259,1740541878419,-1960.26,0.00041643,2]
[354504260,1740541878429,-1019.95,0.00041643,2]
[354504261,1740541878440,-3063.72,0.00041643,2]
[354504262,1740541878450,-1225.56,0.00041643,2]
[354504263,1740541878461,-775.34,0.00041643,2]
[354504264,1740541878471,-500.0,0.00041643,2]
[354504265,1740541878480,-1904.32,0.00041643,2]
[354504266,1740541878490,-573.2,0.00041643,2]
[354504267,1740541878500,-785.27,0.00041643,2]
[354504268,1740541878510,-1033.75,0.00041643,2]
[354504269,1740541878519,-637.72,0.00041643,2]
[354504270,1740541878529,-616.19,0.00041643,2]
[354504271,1740541878539,-2927.49,0.00041643,2]
[354504272,1740541878548,-500.0,0.00041643,2]
[354504273,1740541878558,-14460.9,0.00041643,2]
[354504274,1740541878568,-1115.55,0.00041643,2]
[354504275,1740541878578,-1462.25,0.00041643,2]
[354504276,1740541878587,-571.33,0.00041643,2]
[354504277,1740541878596,-500.0,0.00041643,2]
[354504278,1740541878606,-639.93,0.00041643,2]
[354504279,1740541878616,-743.61,0.00041643,2]
[354504280,1740541878625,-256.70457886,0.00041643,2]
[354504281,1740541878635,-631.65822887,0.00041643,2]
[354504282,1740541878644,-578.75,0.00041643,2]
[354504283,1740541878654,-2827.42,0.00041643,2]
[354504284,1740541878664,-5124.98,0.00041643,2]
[354504285,1740541878673,-500.0,0.00041643,2]
[354504286,1740541878683,-500.0,0.00041643,2]
[354504287,1740541878692,-1239.32,0.00041643,2]
[354504288,1740541878702,-26314.25,0.00041643,2]
[354504289,1740541878712,-11193.35,0.00041643,2]
[354504290,1740541878721,-500.0,0.00041643,2]
[354504291,1740541878735,-4997.59,0.00041643,2]
[354504292,1740541878745,-1060.56,0.00041643,2]
[354504293,1740541878755,-500.0,0.00041643,2]
[354504294,1740541878764,-500.0,0.00041643,2]
[354504295,1740541878774,-500.0,0.00041643,2]
[354504296,1740541878784,-941.31,0.00041643,2]
[354504297,1740541878794,-17506.28,0.00041643,2]
[354504298,1740541878804,-2390.39,0.00041643,2]
[354504299,1740541878816,-435.09512752,0.00041643,2]
[354504300,1740541878826,-3004.03,0.00041643,2]
[354504301,1740541878836,-500.0,0.00041643,2]
[354504302,1740541878847,-1782.91,0.00041643,2]
[354504303,1740541878857,-500.0,0.00041643,2]
[354504304,1740541878867,-500.0,0.00041643,2]
[354504305,1740541878877,-1794.47,0.00041643,2]
[354504306,1740541878887,-623.66,0.00041643,2]
[354504307,1740541878898,-1392.27,0.00041643,2]
[354504308,1740541878908,-575.68,0.00041643,2]
[354504309,1740541878917,-534.28,0.00041643,2]
[354504310,1740541878928,-2753.33,0.00041643,2]
[354504311,1740541878938,-700.69,0.00041643,2]
[354504312,1740541878947,-5602.35,0.00041643,2]
[354504313,1740541878957,-785.44,0.00041643,2]
[354504314,1740541878968,-552.46,0.00041643,2]
[354504315,1740541878978,-500.0,0.00041643,2]
[354504316,1740541878988,-500.0,0.00041643,2]
[354504317,1740541878997,-734.87,0.00041643,2]
[354504318,1740541879007,-3053.22,0.00041643,2]
[354504319,1740541879017,-1081.35,0.00041643,2]
[354504320,1740541879027,-3762.21,0.00041643,2]
[354504321,1740541879035,-13178.26,0.00041643,2]
[354504322,1740541879045,-500.0,0.00041643,2]
[354504323,1740541879055,-843.19,0.00041643,2]
[354504324,1740541879066,-1787.91,0.00041643,2]
[354504325,1740541879076,-500.0,0.00041643,2]
[354504326,1740541879085,-834.45,0.00041643,2]
[354504327,1740541879095,-5245.51,0.00041643,2]
[354504328,1740541879105,-500.0,0.00041643,2]
[354504329,1740541879114,-1168.34,0.00041643,2]
[354504330,1740541879126,-8391.51,0.00041643,2]
[354504331,1740541879135,-1193.47,0.00041643,2]
[354504332,1740541879145,-9125.91,0.00041643,2]
[354504333,1740541879154,-857.27,0.00041643,2]
[354504334,1740541879164,-500.0,0.00041643,2]
[354504335,1740541879173,-500.0,0.00041643,2]
[354504336,1740541879183,-300.0,0.00041643,120]
[354504337,1740541879192,-500.0,0.00041643,2]
[354504338,1740541879202,-5628.63,0.00041643,2]
[354504339,1740541879211,-926.06,0.00041643,2]
[354504340,1740541879221,-566.52,0.00041643,60]
[354504341,1740541879231,-500.0,0.00041643,2]
[354504342,1740541879241,-543.09576557,0.00041644,10]
[354504343,1740541879251,-21651.68,0.000417,30]
[354504344,1740541879261,-1000.0,0.000418,120]
[354504345,1740541879270,-2512.0,0.0004189,120]
[354504346,1740541879280,-2512.0,0.0004189,120]
[354504347,1740541879290,-2512.0,0.0004189,120]
[354504348,1740541879299,-2512.0,0.0004189,120]
[354504349,1740541879308,-2512.0,0.0004189,120]
[354504350,1740541879318,-2512.0,0.0004189,120]
[354504351,1740541879328,-2512.0,0.0004189,120]
[354504352,1740541879337,-2512.0,0.0004189,120]
[354504353,1740541879347,-2512.0,0.0004189,120]
[354504354,1740541879356,-2512.0,0.0004189,120]
[354504355,1740541879365,-2319.08804664,0.0004189,120]
[354504356,1740541879377,-588.91025909,0.00041917,2]
[354504357,1740541879387,-548.16,0.00041917,2]
[354504358,1740541879397,-611.99,0.00041917,2]
[354504359,1740541879406,-890.56,0.00041917,2]
[354504360,1740541879416,-500.0,0.00041917,2]
[354504361,1740541879426,-990.32,0.00041917,2]
[354504362,1740541879436,-500.0,0.00041917,2]
[354504363,1740541879446,-500.0,0.00041917,2]
[354504364,1740541879456,-789.78,0.00041917,2]
[354504365,1740541879466,-500.0,0.00041917,2]
[354504366,1740541879475,-1500.75,0.00041917,2]
[354504367,1740541879485,-500.0,0.00041917,2]
[354504368,1740541879495,-524.67,0.00041917,2]
[354504369,1740541879504,-500.0,0.00041917,2]
[354504370,1740541879513,-500.0,0.00041917,2]
[354504371,1740541879523,-500.0,0.00041917,2]
[354504372,1740541879532,-645.84,0.00041917,2]
[354504373,1740541879542,-667.29,0.00041917,2]
[354504374,1740541879551,-500.0,0.00041917,2]
[354504375,1740541879560,-697.46,0.00041917,2]
[354504376,1740541879570,-551.75,0.00041917,2]
[354504377,1740541879580,-611.81,0.00041917,2]
[354504378,1740541879590,-500.0,0.00041917,2]
[354504379,1740541879599,-500.0,0.00041917,2]
[354504380,1740541879609,-500.0,0.00041917,2]
[354504381,1740541879619,-500.0,0.00041917,2]
[354504382,1740541879632,-1093.44,0.00041917,2]
[354504383,1740541879642,-655.21,0.00041917,2]
[354504384,1740541879651,-500.0,0.00041917,2]
[354504385,1740541879661,-500.0,0.00041917,2]
[354504386,1740541879671,-500.0,0.00041917,2]
[354504387,1740541879680,-500.0,0.00041917,2]
[354504388,1740541879690,-1093.29,0.00041917,2]
[354504389,1740541879699,-1270.97,0.00041917,2]
[354504390,1740541879710,-639.54,0.00041917,2]
[354504391,1740541879719,-1985.84,0.00041917,2]
[354504392,1740541879730,-553.98,0.00041917,2]
[354504393,1740541879741,-500.0,0.00041917,2]
[354504394,1740541879750,-1474.78,0.00041917,2]
[354504395,1740541879760,-500.0,0.00041917,2]
[354504396,1740541879769,-196.79731766,0.00041917,2]
[354504397,1740541879779,-2148.66,0.00041917,2]
[354504398,1740541879788,-500.0,0.00041917,2]
[354504399,1740541879797,-500.0,0.00041917,2]
[354504400,1740541879807,-1062.96,0.00041917,2]
[354504401,1740541879819,-500.0,0.00041917,2]
[354504402,1740541879828,-1566.7,0.00041917,2]
[354504403,1740541879837,-2271.73,0.00041917,2]
[354504404,1740541879846,-910.04,0.00041917,2]
[354504405,1740541879856,-808.12,0.00041917,2]
[354504406,1740541879865,-660.19,0.00041917,2]
[354504407,1740541879876,-1062.27,0.00041917,2]
[354504408,1740541879885,-761.72,0.00041917,2]
[354504409,1740541879895,-587.82,0.00041917,2]
[354504410,1740541879905,-2348.87,0.00041917,2]
[354504411,1740541879915,-500.0,0.00041917,2]
[354504412,1740541879925,-1082.88,0.00041917,2]
[354504413,1740541879934,-1083.65,0.00041917,2]
[354504414,1740541879943,-1180.85,0.00041917,2]
[354504415,1740541879952,-588.21,0.00041917,2]
[354504416,1740541879961,-905.71,0.00041917,2]
[354504417,1740541879971,-522.98,0.00041917,2]
[354504418,1740541879980,-916.92,0.00041917,120]
[354504419,1740541879989,-594.42,0.00041917,2]
[354504420,1740541879999,-500.0,0.00041917,2]
[354504421,1740541880008,-940.15,0.00041917,2]
[354504422,1740541880017,-1845.61,0.00041917,2]
[354504423,1740541880027,-850.18,0.00041917,2]
[354504424,1740541880036,-566.29,0.00041917,2]
[354504425,1740541880045,-1025.57,0.00041917,2]
[354504426,1740541880054,-634.95,0.00041917,2]
[354504427,1740541880064,-1528.03,0.00041917,2]
[354504428,1740541880073,-666.28,0.00041917,2]
[354504429,1740541880082,-1167.0,0.00041917,2]
[354504430,1740541880093,-1631.72,0.00041917,2]
[354504431,1740541880102,-524.39,0.00041917,2]
[354504432,1740541880111,-500.0,0.00041917,2]
[354504433,1740541880121,-500.0,0.00041917,2]
[354504434,1740541880131,-550.66,0.00041917,2]
[354504435,1740541880140,-776.92,0.00041917,2]
[354504436,1740541880149,-540.59,0.00041917,2]
[354504437,1740541880159,-1099.25,0.00041917,2]
[354504438,1740541880168,-531.21,0.00041917,2]
[354504439,1740541880177,-653.07,0.00041917,2]
[354504440,1740541880187,-500.0,0.00041917,2]
[354504441,1740541880196,-675.52,0.00041917,2]
[354504442,1740541880206,-2325.51,0.00041917,2]
[354504443,1740541880215,-1778.36,0.00041917,2]
[354504444,1740541880225,-500.0,0.00041917,2]
[354504445,1740541880235,-2484.09,0.00041917,2]
[354504446,1740541880244,-1225.49,0.00041917,2]
[354504447,1740541880254,-998.16,0.00041917,2]
[354504448,1740541880263,-2602.84,0.00041917,2]
[354504449,1740541880273,-565.19,0.00041917,2]
[354504450,1740541880283,-500.0,0.00041917,2]
[354504451,1740541880292,-2764.65,0.00041917,2]
[354504452,1740541880302,-1783.36,0.00041917,2]
[354504453,1740541880311,-6750.26,0.00041917,2]
[354504454,1740541880320,-500.0,0.00041917,2]
[354504455,1740541880330,-5267.08,0.00041917,2]
[354504456,1740541880339,-1830.68,0.00041917,2]
[354504457,1740541880349,-2033.02,0.00041917,2]
[354504458,1740541880359,-3800.0,0.00041917,120]
[354504459,1740541880368,-500.0,0.00041917,2]
[354504460,1740541880379,-500.0,0.00041917,2]
[354504461,1740541880435,-8525.94,0.00041917,2]
[354504462,1740541880444,-167654.2,0.00041917,2]
[354504463,1740541880453,-2404.5,0.00041917,2]
[354504464,1740541880463,-500.0,0.00041917,2]
[354504465,1740541880472,-986.53,0.00041917,2]
[354504466,1740541880483,-18440.98,0.00041917,2]
[354504467,1740541880492,-527.39,0.00041917,2]
[354504468,1740541880502,-626.84,0.00041917,2]
[354504469,1740541880512,-2187.34,0.00041917,2]
[354504470,1740541880523,-2420.23,0.00041917,2]
[354504471,1740541880534,-3527.91,0.00041917,2]
[354504472,1740541880543,-500.0,0.00041917,2]
[354504473,1740541880552,-635.5,0.00041917,2]
[354504474,1740541880561,-1252.18,0.00041917,2]
[354504475,1740541880571,-500.0,0.00041917,2]
[354504476,1740541880581,-1909.8,0.00041917,2]
[354504477,1740541880590,-500.0,0.00041917,2]
[354504478,1740541880599,-1960.26,0.00041917,2]
[354504479,1740541880609,-1019.95,0.00041917,2]
[354504480,1740541880618,-3063.72,0.00041917,2]
[354504481,1740541880629,-1225.56,0.00041917,2]
[354504482,1740541880639,-775.34,0.00041917,2]
[354504483,1740541880648,-500.0,0.00041917,2]
[354504484,1740541880658,-1904.32,0.00041917,2]
[354504485,1740541880667,-573.2,0.00041917,2]
[354504486,1740541880676,-785.27,0.00041917,2]
[354504487,1740541880686,-1033.75,0.00041917,2]
[354504488,1740541880695,-637.72,0.00041917,2]
[354504489,1740541880705,-616.19,0.00041917,2]
[354504490,1740541880714,-2927.49,0.00041917,2]
[354504491,1740541880723,-500.0,0.00041917,2]
[354504492,1740541880736,-14460.9,0.00041917,2]
[354504493,1740541880745,-1115.55,0.00041917,2]
[354504494,1740541880754,-1462.25,0.00041917,2]
[354504495,1740541880763,-571.33,0.00041917,2]
[354504496,1740541880775,-500.0,0.00041917,2]
[354504497,1740541880784,-639.93,0.00041917,2]
[354504498,1740541880793,-743.61,0.00041917,2]
[354504499,1740541880802,-578.75,0.00041917,2]
[354504500,1740541880812,-2827.42,0.00041917,2]
[354504501,1740541880821,-5124.98,0.00041917,2]
[354504502,1740541880830,-539.98302615,0.00041917,2]
[354504503,1740541880839,-500.0,0.00041917,2]
[354504504,1740541880849,-1239.32,0.00041917,2]
[354504505,1740541880858,-26314.25,0.00041917,2]
[354504506,1740541880867,-11193.35,0.00041917,2]
[354504507,1740541880877,-500.0,0.00041917,2]
[354504508,1740541880886,-4997.59,0.00041917,2]
[354504509,1740541880895,-1060.56,0.00041917,2]
[354504510,1740541880906,-500.0,0.00041917,2]
[354504511,1740541880915,-500.0,0.00041917,2]
[354504512,1740541880925,-500.0,0.00041917,2]
[354504513,1740541880934,-941.31,0.00041917,2]
[354504514,1740541880944,-17506.28,0.00041917,2]
[354504515,1740541880953,-2390.39,0.00041917,2]
[354504516,1740541880962,-3004.03,0.00041917,2]
[354504517,1740541880972,-500.0,0.00041917,2]
[354504518,1740541880981,-1782.91,0.00041917,2]
[354504519,1740541880991,-500.0,0.00041917,2]
[354504520,1740541881000,-500.0,0.00041917,2]
[354504521,1740541881009,-1794.47,0.00041917,2]
[354504522,1740541881019,-623.66,0.00041917,2]
[354504523,1740541881028,-1392.27,0.00041917,2]
[354504524,1740541881037,-575.68,0.00041917,2]
[354504525,1740541881046,-534.28,0.00041917,2]
[354504526,1740541881055,-2753.33,0.00041917,2]
[354504527,1740541881064,-700.69,0.00041917,2]
[354504528,1740541881073,-5602.35,0.00041917,2]
[354504529,1740541881082,-785.44,0.00041917,2]
[354504530,1740541881091,-552.46,0.00041917,2]
[354504531,1740541881100,-500.0,0.00041917,2]
[354504532,1740541881109,-500.0,0.00041917,2]
[354504533,1740541881118,-734.87,0.00041917,2]
[354504534,1740541881128,-3053.22,0.00041917,2]
[354504535,1740541881137,-1081.35,0.00041917,2]
[354504536,1740541881147,-3762.21,0.00041917,2]
[354504537,1740541881156,-13178.26,0.00041917,2]
[354504538,1740541881165,-500.0,0.00041917,2]
[354504539,1740541881175,-843.19,0.00041917,2]
[354504540,1740541881184,-1787.91,0.00041917,2]
[354504541,1740541881194,-500.0,0.00041917,2]
[354504542,1740541881203,-834.45,0.00041917,2]
[354504543,1740541881213,-5245.51,0.00041917,2]
[354504544,1740541881222,-500.0,0.00041917,2]
[354504545,1740541881231,-1168.34,0.00041917,2]
[354504546,1740541881240,-8391.51,0.00041917,2]
[354504547,1740541881249,-1193.47,0.00041917,2]
[354504548,1740541881258,-9125.91,0.00041917,2]
[354504549,1740541881267,-857.27,0.00041917,2]
[354504550,1740541881276,-500.0,0.00041917,2]
[354504551,1740541881286,-500.0,0.00041917,2]
[354504552,1740541881295,-300.0,0.00041917,120]
[354504553,1740541881306,-500.0,0.00041917,2]
[354504554,1740541881315,-5628.63,0.00041917,2]
[354504555,1740541881325,-926.06,0.00041917,2]
[354504556,1740541881334,-566.52,0.00041917,60]
[354504557,1740541881343,-500.0,0.00041917,2]
[354504558,1740541881353,-160.0,0.00041986,3]
[354504559,1740541881362,-6063.04222052,0.00042,30]
[354504560,1740541881371,-623.0,0.00042,30]
[354504561,1740541881382,-403.83440175,0.0004219,31]
[354504562,1740541881391,-391.83324835,0.0004219,31]
[354504563,1740541881399,-385.86044931,0.0004219,31]
[354504564,1740541881408,-213.19070528,0.0004219,31]
[354504565,1740541881418,-446.73498857,0.0004219,31]
[354504566,1740541881427,-500.0,0.0004219,31]
[354504567,1740541881436,-500.0,0.0004219,31]
[354504568,1740541881445,-500.0,0.0004219,31]
[354504569,1740541881454,-500.0,0.0004219,31]
[354504570,1740541881463,-500.0,0.0004219,31]
[354504571,1740541881472,-500.0,0.0004219,31]
[354504572,1740541881481,-500.0,0.0004219,31]
[354504573,1740541881490,-569.73995717,0.0004219,31]
[354504574,1740541881499,-500.0,0.0004219,31]
[354504575,1740541881508,-500.0,0.0004219,31]
[354504576,1740541881518,-386.89300785,0.0004219,31]
[354504577,1740541881527,-233.92796856,0.0004219,31]
[354504578,1740541881536,-155.4935224,0.0004219,31]
[354504579,1740541881544,-548.16,0.00042191,2]
[354504580,1740541881554,-611.99,0.00042191,2]
[354504581,1740541881563,-890.56,0.00042191,2]
[354504582,1740541881573,-500.0,0.00042191,2]
[354504583,1740541881582,-990.32,0.00042191,2]
[354504584,1740541881591,-500.0,0.00042191,2]
[354504585,1740541881601,-500.0,0.00042191,2]
[354504586,1740541881609,-789.78,0.00042191,2]
[354504587,1740541881619,-500.0,0.00042191,2]
[354504588,1740541881630,-1500.75,0.00042191,2]
[354504589,1740541881640,-500.0,0.00042191,2]
[354504590,1740541881649,-524.67,0.00042191,2]
[354504591,1740541881659,-500.0,0.00042191,2]
[354504592,1740541881668,-500.0,0.00042191,2]
[354504593,1740541881677,-500.0,0.00042191,2]
[354504594,1740541881686,-645.84,0.00042191,2]
[354504595,1740541881695,-667.29,0.00042191,2]
[354504596,1740541881704,-500.0,0.00042191,2]
[354504597,1740541881714,-697.46,0.00042191,2]
[354504598,1740541881724,-551.75,0.00042191,2]
[354504599,1740541881735,-611.81,0.00042191,2]
[354504600,1740541881745,-500.0,0.00042191,2]
[354504601,1740541881755,-500.0,0.00042191,2]
[354504602,1740541881764,-260.5,0.00042191,2]
[354504603,1740541881775,-500.0,0.00042191,2]
[354504604,1740541881785,-1093.44,0.00042191,2]
[354504605,1740541881794,-655.21,0.00042191,2]
[354504606,1740541881804,-500.0,0.00042191,2]
[354504607,1740541881814,-500.0,0.00042191,2]
[354504608,1740541881824,-573.10945318,0.00042191,2]
[354504609,1740541881833,-500.0,0.00042191,2]
[354504610,1740541881841,-1093.29,0.00042191,2]
[354504611,1740541881851,-1270.97,0.00042191,2]
[354504612,1740541881861,-639.54,0.00042191,2]
[354504613,1740541881870,-1985.84,0.00042191,2]
[354504614,1740541881883,-553.98,0.00042191,2]
[354504615,1740541881893,-333.56940705,0.00042191,2]
[354504616,1740541881902,-1474.78,0.00042191,2]
[354504617,1740541881912,-579.73996244,0.00042191,2]
[354504618,1740541881922,-2148.66,0.00042191,2]
[354504619,1740541881931,-500.0,0.00042191,2]
[354504620,1740541881941,-500.0,0.00042191,2]
[354504621,1740541881950,-1062.96,0.00042191,2]
[354504622,1740541881960,-500.0,0.00042191,2]
[354504623,1740541881969,-1566.7,0.00042191,2]
[354504624,1740541881979,-2271.73,0.00042191,2]
[354504625,1740541881988,-910.04,0.00042191,2]
[354504626,1740541881998,-808.12,0.00042191,2]
[354504627,1740541882007,-660.19,0.00042191,2]
[354504628,1740541882016,-1062.27,0.00042191,2]
[354504629,1740541882026,-761.72,0.00042191,2]
[354504630,1740541882035,-587.82,0.00042191,2]
[354504631,1740541882045,-2348.87,0.00042191,2]
[354504632,1740541882054,-500.0,0.00042191,2]
[354504633,1740541882063,-1082.88,0.00042191,2]
[354504634,1740541882072,-1083.65,0.00042191,2]
[354504635,1740541882081,-1180.85,0.00042191,2]
[354504636,1740541882090,-588.21,0.00042191,2]
[354504637,1740541882099,-905.71,0.00042191,2]
[354504638,1740541882108,-522.98,0.00042191,2]
[354504639,1740541882117,-916.92,0.00042191,120]
[354504640,1740541882127,-594.42,0.00042191,2]
[354504641,1740541882136,-500.0,0.00042191,2]
[354504642,1740541882146,-940.15,0.00042191,2]
[354504643,1740541882155,-1845.61,0.00042191,2]
[354504644,1740541882164,-850.18,0.00042191,2]
[354504645,1740541882173,-566.29,0.00042191,2]
[354504646,1740541882182,-1025.57,0.00042191,2]
[354504647,1740541882191,-634.95,0.00042191,2]
[354504648,1740541882200,-1528.03,0.00042191,2]
[354504649,1740541882209,-666.28,0.00042191,2]
[354504650,1740541882218,-1167.0,0.00042191,2]
[354504651,1740541882227,-1631.72,0.00042191,2]
[354504652,1740541882236,-524.39,0.00042191,2]
[354504653,1740541882246,-500.0,0.00042191,2]
[354504654,1740541882255,-500.0,0.00042191,2]
[354504655,1740541882264,-550.66,0.00042191,2]
[354504656,1740541882273,-776.92,0.00042191,2]
[354504657,1740541882283,-540.59,0.00042191,2]
[354504658,1740541882292,-1099.25,0.00042191,2]
[354504659,1740541882301,-531.21,0.00042191,2]
[354504660,1740541882310,-653.07,0.00042191,2]
[354504661,1740541882319,-500.0,0.00042191,2]
[354504662,1740541882329,-2325.51,0.00042191,2]
[354504663,1740541882338,-675.52,0.00042191,2]
[354504664,1740541882347,-1778.36,0.00042191,2]
[354504665,1740541882356,-500.0,0.00042191,2]
[354504666,1740541882365,-2484.09,0.00042191,2]
[354504667,1740541882374,-1225.49,0.00042191,2]
[354504668,1740541882385,-998.16,0.00042191,2]
[354504669,1740541882394,-2602.84,0.00042191,2]
[354504670,1740541882403,-565.19,0.00042191,2]
[354504671,1740541882413,-500.0,0.00042191,2]
[354504672,1740541882422,-2764.65,0.00042191,2]
[354504673,1740541882431,-1783.36,0.00042191,2]
[354504674,1740541882440,-6750.26,0.00042191,2]
[354504675,1740541882450,-500.0,0.00042191,2]
[354504676,1740541882460,-5267.08,0.00042191,2]
[354504677,1740541882469,-1830.68,0.00042191,2]
[354504678,1740541882478,-2033.02,0.00042191,2]
[354504679,1740541882488,-3800.0,0.00042191,120]
[354504680,1740541882497,-500.0,0.00042191,2]
[354504681,1740541882507,-382.98039196,0.00042191,2]
[354504682,1740541882516,-8525.94,0.00042191,2]
[354504683,1740541882526,-167654.2,0.00042191,2]
[354504684,1740541882535,-2404.5,0.00042191,2]
[354504685,1740541882545,-500.0,0.00042191,2]
[354504686,1740541882555,-986.53,0.00042191,2]
[354504687,1740541882564,-18440.98,0.00042191,2]
[354504688,1740541882574,-527.39,0.00042191,2]
[354504689,1740541882583,-626.84,0.00042191,2]
[354504690,1740541882593,-2187.34,0.00042191,2]
[354504691,1740541882602,-2420.23,0.00042191,2]
[354504692,1740541882611,-3527.91,0.00042191,2]
[354504693,1740541882621,-500.0,0.00042191,2]